bitfinex/quotes_BTCUSD_20251219
["timestamp","ask_amount","ask_price","bid_price","bid_amount"]
[1766130441727,0.01137035,87948.0,87929.0,0.01137281]
[1766130442273,0.01137022,87949.0,87930.0,0.11889]
[1766130442471,0.01137022,87949.0,87929.0,0.01137281]
[1766130442472,0.01137022,87949.0,87934.0,0.11889]
[1766130442677,0.01137035,87948.0,87935.0,0.23171]
[1766130443111,0.01137022,87949.0,87935.0,0.23171]
[1766130443112,0.01137087,87944.0,87935.0,0.11889]
[1766130443300,0.01137061,87946.0,87936.0,0.11282]
[1766130443497,0.01137074,87945.0,87936.0,0.11282]
[1766130444697,0.01137048,87947.0,87936.0,0.11282]
[1766130444903,0.01137061,87946.0,87936.0,0.11282]
[1766130445638,0.2274204,87943.0,87925.0,0.00010945]
[1766130445865,0.01137061,87946.0,87925.0,0.00010945]
[1766130446070,0.01137061,87946.0,87926.0,0.0113732]
[1766130446249,0.04780175,87949.0,87930.0,0.01137268]
[1766130446451,0.04780175,87949.0,87929.0,0.01137281]
[1766130446700,0.01137035,87948.0,87928.0,0.01137294]
[1766130446848,0.01137048,87947.0,87928.0,0.01137294]
[1766130447060,0.04780175,87949.0,87929.0,0.01137281]
[1766130447258,0.0113697,87953.0,87934.0,0.11889]
[1766130447476,0.01136983,87952.0,87937.0,0.11282]
[1766130447680,0.01136932,87956.0,87939.0,0.23171]
[1766130447916,0.01136932,87956.0,87940.0,0.01364566]
[1766130448081,0.01136983,87952.0,87942.0,0.23171]
[1766130448592,0.01136996,87951.0,87942.0,0.23171]
[1766130448817,0.2387721,87950.0,87942.0,0.11889]
[1766130448973,0.01137022,87949.0,87942.0,0.11889]
[1766130449178,0.01137009,87950.0,87942.0,0.11889]
[1766130449591,0.01137022,87949.0,87942.0,0.11889]
[1766130449795,0.01137009,87950.0,87942.0,0.11889]
[1766130449994,0.01137022,87949.0,87942.0,0.11889]
[1766130450230,0.01137009,87950.0,87942.0,0.11889]
[1766130450426,0.01137022,87949.0,87942.0,0.11889]
[1766130450802,0.01137009,87950.0,87942.0,0.11889]
[1766130451275,0.01136996,87951.0,87942.0,0.11889]
[1766130451431,0.01137009,87950.0,87942.0,0.11889]
[1766130451818,0.01136983,87952.0,87942.0,0.11889]
[1766130452154,0.01136957,87954.0,87942.0,0.11889]
[1766130452300,0.01136932,87956.0,87942.0,0.11889]
[1766130452504,0.0113697,87953.0,87942.0,0.11889]
[1766130452909,0.01136957,87954.0,87942.0,0.11889]
[1766130453315,0.01136945,87955.0,87942.0,0.11889]
[1766130453516,0.06443,87956.0,87942.0,0.11889]
[1766130453718,0.01136893,87959.0,87940.0,0.23171]
[1766130453922,0.92080507,87960.0,87941.0,0.11889]
[1766130454123,0.01136893,87959.0,87941.0,0.23171]
[1766130454380,0.01136815,87965.0,87947.0,0.23171]
[1766130454532,0.07579815,87965.0,87947.0,0.11889]
[1766130454737,0.07579815,87965.0,87947.0,0.23171]
[1766130454738,0.0113688,87960.0,87947.0,0.23171]
[1766130454946,0.01136854,87962.0,87947.0,0.23171]
[1766130455175,0.07579841,87963.0,87943.0,0.011371]
[1766130455423,0.0113688,87960.0,87945.0,0.11872]
[1766130455642,0.07579854,87962.0,87945.0,0.11872]
[1766130455784,0.01136867,87961.0,87945.0,0.11872]
[1766130457031,0.06443,87962.0,87945.0,0.11872]
[1766130457266,0.06443,87962.0,87946.0,0.11951]
[1766130457440,0.06443,87962.0,87943.0,0.011371]
[1766130457441,1.00019727,87960.0,87945.0,0.23823]
[1766130457633,1.00019727,87960.0,87945.0,0.24960074]
[1766130457866,1.00019727,87960.0,87945.0,0.23823]
[1766130457994,1.00019727,87960.0,87946.0,0.01137061]
[1766130458199,1.00019727,87960.0,87947.0,0.01137048]
[1766130458429,0.23871805,87970.0,87947.0,0.01137048]
[1766130458430,0.06443,87973.0,87960.0,0.0011]
[1766130458628,1.00019727,87970.0,87960.0,0.0011]
[1766130458830,0.03514666,87969.0,87960.0,0.0011]
[1766130459030,0.01063748,87968.0,87956.0,0.23823]
[1766130459642,0.01074691,87968.0,87956.0,0.23823]
[1766130459840,0.2381036,87968.0,87956.0,0.23823]
[1766130460012,0.03643153,87966.0,87956.0,0.11951]
[1766130460216,0.02428511,87965.0,87956.0,0.11951]
[1766130460418,0.01063748,87964.0,87956.0,0.11951]
[1766130461051,0.01063748,87963.0,87956.0,0.11951]
[1766130461235,0.01063748,87962.0,87956.0,0.11951]
[1766130461579,0.01063748,87961.0,87956.0,0.11951]
[1766130461739,0.01136802,87966.0,87956.0,0.11951]
[1766130462107,0.01065792,87965.0,87956.0,0.11951]
[1766130462324,0.01065792,87964.0,87956.0,0.11951]
[1766130462538,0.01065792,87963.0,87956.0,0.11951]
[1766130462745,0.01065792,87962.0,87956.0,0.11951]
[1766130462948,0.01065792,87961.0,87956.0,0.11951]
[1766130463121,0.02461861,87968.0,87956.0,0.11951]
[1766130463122,0.00010943,87968.0,87956.0,0.11951]
[1766130463437,0.02450918,87969.0,87956.0,0.11951]
[1766130463621,0.01136621,87980.0,87969.0,0.00099]
[1766130463823,0.01136712,87973.0,87958.0,0.11951]
[1766130464027,1.00019727,87970.0,87958.0,0.11951]
[1766130464427,1.00019727,87970.0,87958.0,0.23823]
[1766130464949,1.00019727,87970.0,87956.0,0.00010943]
[1766130464950,0.01136802,87966.0,87956.0,0.00010943]
[1766130465154,0.01136802,87966.0,87944.0,0.11951]
[1766130465155,0.07807763,87965.0,87944.0,0.11951]
[1766130465374,1.00019727,87960.0,87944.0,0.13088087]
[1766130465696,1.00019727,87960.0,87945.0,0.01137074]
[1766130465872,1.00019727,87960.0,87946.0,0.01137061]
[1766130466879,1.00019727,87960.0,87945.0,0.11872]
[1766130467332,1.00019727,87960.0,87944.0,0.13088087]
[1766130467333,0.01136932,87956.0,87937.0,0.11872]
[1766130467542,0.06443,87949.0,87933.0,0.11951]
[1766130467745,0.01364763,87948.0,87933.0,0.11951]
[1766130468572,0.02501798,87948.0,87933.0,0.11951]
[1766130468789,0.01364763,87948.0,87933.0,0.11951]
[1766130469468,1.01156736,87950.0,87933.0,0.11951]
[1766130470074,1.00019727,87950.0,87933.0,0.11951]
[1766130470744,0.01136957,87954.0,87931.0,0.01137255]
[1766130470965,0.01136932,87956.0,87936.0,0.23823]
[1766130471183,1.00019727,87950.0,87936.0,0.23823]
[1766130471967,1.07599607,87960.0,87950.0,0.0011]
[1766130472142,0.06443,87959.0,87950.0,0.0011]
[1766130472511,0.01136906,87958.0,87941.0,0.23823]
[1766130472722,0.07579906,87958.0,87941.0,0.23823]
[1766130472942,0.06443,87956.0,87941.0,0.11951]
[1766130477370,1.00019727,87960.0,87942.0,0.24960113]
[1766130477492,1.00019727,87960.0,87943.0,0.130091]
[1766130477696,0.29179741,87964.0,87944.0,0.02501591]
[1766130477697,0.06443,87964.0,87944.0,0.02501591]
[1766130478029,0.06443,87964.0,87950.0,1.00019727]
[1766130478353,0.00010935,87965.0,87950.0,1.00019727]
[1766130478509,0.00010935,87965.0,87953.0,0.0113697]
[1766130478713,0.00010935,87965.0,87954.0,0.01364349]
[1766130478911,0.00010935,87965.0,87952.0,0.24959983]
[1766130478912,0.00010935,87965.0,87952.0,0.11951]
[1766130479497,0.01136828,87964.0,87952.0,0.11951]
[1766130479701,0.0114775,87965.0,87952.0,0.11951]
[1766130480017,0.00010935,87965.0,87952.0,0.11951]
[1766130480217,0.0114775,87965.0,87952.0,0.11951]
[1766130480413,0.01136945,87955.0,87937.0,0.11872]
[1766130480618,0.06443,87954.0,87933.0,0.23823]
[1766130480822,0.07579983,87952.0,87933.0,0.24960229]
[1766130481027,0.07580009,87950.0,87933.0,0.23823]
[1766130481314,0.01364763,87949.0,87933.0,0.23823]
[1766130481481,0.06443,87942.0,87921.0,0.01137384]
[1766130481727,0.01137126,87941.0,87921.0,0.01137384]
[1766130481936,0.01137126,87941.0,87913.0,0.11951]
[1766130481937,0.01137242,87932.0,87913.0,0.11951]
[1766130482255,0.01137384,87921.0,87906.0,0.11951]
[1766130482402,0.01364763,87921.0,87906.0,0.11851]
[1766130482581,0.06443,87924.0,87906.0,0.11851]
[1766130482582,0.06443,87924.0,87907.0,0.01137565]
[1766130482985,0.06443,87924.0,87906.0,0.12988578]
[1766130483211,0.01137384,87921.0,87907.0,0.00036521]
[1766130483386,0.06443,87921.0,87907.0,0.00036521]
[1766130484204,0.01137423,87918.0,87907.0,0.00036521]
[1766130484410,0.06443,87916.0,87897.0,0.11734]
[1766130484693,0.01364763,87915.0,87899.0,0.23845]
[1766130485365,0.01364763,87915.0,87899.0,0.24982669]
[1766130485553,0.01364763,87915.0,87899.0,0.23845]
[1766130485804,0.01364763,87915.0,87899.0,0.24982669]
[1766130486021,0.06443,87916.0,87900.0,0.01137656]
[1766130486248,0.06443,87916.0,87899.0,0.23845]
[1766130486494,0.06443,87916.0,87899.0,0.24982669]
[1766130486708,0.01137358,87923.0,87902.0,0.0113763]
[1766130486930,0.06443,87922.0,87903.0,0.01137617]
[1766130487364,0.11769,87948.0,87929.0,0.23668]
[1766130487560,0.11411,87947.0,87930.0,0.01137268]
[1766130487759,0.11411,87947.0,87931.0,0.22745106]
[1766130487896,0.11411,87947.0,87935.0,0.01137203]
[1766130488096,0.11411,87947.0,87934.0,0.01137216]
[1766130488306,0.11411,87947.0,87936.0,0.0113719]
[1766130488532,0.1144747,87947.0,87935.0,0.01137203]
[1766130488750,0.0003647,87947.0,87937.0,0.01137177]
[1766130488950,0.0003647,87947.0,87940.0,0.01137138]
[1766130489157,7e-07,87947.0,87944.0,0.01137087]
[1766130489305,7e-07,87947.0,87944.0,0.2387882]
[1766130490376,7e-07,87947.0,87942.0,0.01137113]
[1766130490607,7e-07,87947.0,87941.0,0.1197]
[1766130491012,7e-07,87947.0,87941.0,0.13107126]
[1766130491323,7e-07,87947.0,87943.0,0.011371]
[1766130491535,7e-07,87947.0,87942.0,0.13107113]
[1766130491728,7e-07,87947.0,87942.0,0.1197]
[1766130492225,7e-07,87947.0,87942.0,0.08695264]
[1766130494471,7e-07,87947.0,87943.0,0.011371]
[1766130495126,7e-07,87947.0,87944.0,0.01137087]
[1766130495297,7e-07,87947.0,87945.0,0.22741486]
[1766130495520,7e-07,87947.0,87946.0,0.1197]
[1766130496243,7e-07,87947.0,87946.0,0.23668]
[1766130499963,7e-07,87947.0,87944.0,0.01137087]
[1766130500281,7e-07,87947.0,87943.0,0.23878877]
[1766130500282,7e-07,87947.0,87943.0,0.011371]
[1766130500482,0.1138747,87954.0,87943.0,0.011371]
[1766130501950,0.1138747,87954.0,87942.0,0.01137113]
[1766130502094,0.1138747,87954.0,87943.0,0.011371]
[1766130502301,0.1138747,87954.0,87944.0,0.01137087]
[1766130502503,0.1138747,87954.0,87945.0,0.01137074]
[1766130502703,0.1138747,87954.0,87943.0,0.011371]
[1766130503034,0.1138747,87954.0,87944.0,0.01137087]
[1766130503213,0.1138747,87954.0,87945.0,0.01137074]
[1766130504222,0.1138747,87954.0,87945.0,0.23878475]
[1766130504415,0.12269,87958.0,87948.0,0.01137035]
[1766130504617,0.12279933,87958.0,87949.0,0.01137022]
[1766130504845,0.00010933,87958.0,87950.0,0.13107009]
[1766130505390,0.00010933,87958.0,87951.0,0.01136996]
[1766130506099,0.00010933,87958.0,87948.0,0.01137035]
[1766130506248,0.00010933,87958.0,87945.0,0.1197]
[1766130506453,0.01147839,87958.0,87942.0,0.11698]
[1766130506663,0.11411,87954.0,87937.0,0.13107177]
[1766130506864,0.12269,87950.0,87935.0,0.01137203]
[1766130507090,0.2368,87950.0,87936.0,0.0113719]
[1766130507658,0.2368,87950.0,87940.0,0.01137138]
[1766130507859,0.11411,87950.0,87939.0,0.01137151]
[1766130508084,0.12269,87955.0,87941.0,0.01137126]
[1766130508295,0.2368,87955.0,87941.0,0.01137126]
[1766130508544,0.12269,87955.0,87941.0,0.01137126]
[1766130508765,0.11411,87954.0,87941.0,0.01137126]
[1766130509221,0.11411,87954.0,87940.0,0.01137138]
[1766130509614,0.11411,87954.0,87942.0,0.01137113]
[1766130510025,0.11411,87954.0,87941.0,0.1197]
[1766130510248,0.11411,87954.0,87942.0,0.01137113]
[1766130510664,0.11411,87954.0,87941.0,0.13107126]
[1766130510822,0.11411,87954.0,87942.0,0.01137113]
[1766130511022,0.11411,87954.0,87941.0,0.13107126]
[1766130511445,0.11411,87954.0,87942.0,0.01137113]
[1766130511650,0.11411,87954.0,87941.0,0.13107126]
[1766130512601,0.11411,87954.0,87941.0,0.1197]
[1766130513039,0.11411,87954.0,87942.0,0.01137113]
[1766130513675,0.11411,87954.0,87941.0,0.1197]
[1766130514719,0.01136945,87955.0,87940.0,0.11698]
[1766130514893,0.12269,87954.0,87940.0,0.11698]
[1766130515040,0.2368,87953.0,87940.0,0.11698]
[1766130515672,0.12359,87952.0,87940.0,0.11698]
[1766130516513,0.01136945,87955.0,87930.0,0.12402]
[1766130516514,0.12425,87955.0,87930.0,0.12402]
[1766130516733,0.22741486,87945.0,87931.0,0.1234]
[1766130516940,0.12359,87943.0,87931.0,0.1234]
[1766130519694,0.01137113,87942.0,87931.0,0.1234]
[1766130519922,0.12359,87943.0,87931.0,0.1234]
[1766130520123,0.13723763,87943.0,87931.0,0.1234]
[1766130521088,0.12359,87942.0,87930.0,0.12402]
[1766130523181,0.12425,87943.0,87926.0,0.1234]
[1766130523182,0.01137151,87939.0,87926.0,0.1234]
[1766130523404,0.13723763,87939.0,87926.0,0.1234]
[1766130523608,0.13789763,87939.0,87926.0,0.1234]
[1766130523810,0.01137138,87940.0,87913.0,0.1234]
[1766130523811,0.01137268,87930.0,87913.0,0.1234]
[1766130524020,0.01137242,87932.0,87910.0,0.12402]
[1766130524021,0.12359,87926.0,87910.0,0.12402]
[1766130524226,0.12359,87926.0,87908.0,0.24742]
[1766130524589,0.1349632,87926.0,87907.0,0.1478]
[1766130524812,0.01137384,87921.0,87907.0,0.1478]
[1766130525039,0.01137384,87921.0,87908.0,0.24742]
[1766130525506,0.01137371,87922.0,87907.0,0.1481647]
[1766130525731,0.01137371,87922.0,87908.0,0.24742]
[1766130526192,0.01137371,87922.0,87907.0,0.1481647]
[1766130526411,0.01137384,87921.0,87907.0,0.1481647]
[1766130526630,0.01137371,87922.0,87907.0,0.1481647]
[1766130526855,0.1349632,87926.0,87908.0,0.24742]
[1766130527306,0.01137384,87921.0,87907.0,0.1481647]
[1766130527553,0.01137397,87920.0,87909.0,0.1234]
[1766130527803,0.01137423,87918.0,87908.0,0.12402]
[1766130528469,0.01137436,87917.0,87908.0,0.12402]
[1766130528696,0.12359,87920.0,87908.0,0.12402]
[1766130528910,0.0113741,87919.0,87908.0,0.12402]
[1766130529358,0.01137423,87918.0,87908.0,0.12402]
[1766130529874,0.22750825,87909.0,87907.0,0.0003647]
[1766130530101,0.01137527,87910.0,87907.0,0.0003647]
[1766130530340,0.47535057,87908.0,87907.0,4.7e-06]
[1766130535519,0.01137811,87888.0,87878.0,0.1234]
[1766130535718,0.12359,87897.0,87878.0,0.1234]
[1766130535719,0.01137759,87892.0,87888.0,0.0011]
[1766130535939,0.01137759,87892.0,87878.0,0.00010945]
[1766130535940,0.01027772,87891.0,87882.0,0.1234]
[1766130536140,0.01137772,87891.0,87883.0,0.1234]
[1766130536720,0.01137747,87893.0,87883.0,0.1234]
[1766130538026,0.01137759,87892.0,87883.0,0.1234]
[1766130538667,0.01137708,87896.0,87884.0,0.12402]
[1766130538874,0.01137669,87899.0,87889.0,0.1234]
[1766130539079,0.01137643,87901.0,87889.0,0.1234]
[1766130539284,0.23890524,87901.0,87889.0,0.1234]
[1766130539491,0.01137682,87898.0,87889.0,0.1234]
[1766130540103,0.113916,87897.0,87889.0,0.1234]
[1766130540307,0.01137734,87894.0,87880.0,0.02096]
[1766130540514,0.01137734,87894.0,87883.0,0.14436]
[1766130540723,0.01137798,87889.0,87878.0,0.00010945]
[1766130541001,0.01137811,87888.0,87878.0,0.00010945]
[1766130541180,0.01137811,87888.0,87878.0,0.12350945]
[1766130541384,0.0113785,87885.0,87878.0,0.14446945]
[1766130541602,0.12359,87893.0,87878.0,0.14446945]
[1766130541603,0.23894059,87888.0,87878.0,0.14446945]
[1766130541832,0.0113785,87885.0,87878.0,0.00010945]
[1766130542034,0.00628018,87872.0,87865.0,0.1234]
[1766130542258,0.01137954,87877.0,87865.0,0.1234]
[1766130542259,0.22759083,87877.0,87865.0,0.12350946]
[1766130542475,0.01137941,87878.0,87865.0,0.12350946]
[1766130542895,0.01137967,87876.0,87865.0,0.12350946]
[1766130543101,0.0113798,87875.0,87865.0,0.12350946]
[1766130543659,0.01137967,87876.0,87865.0,0.12350946]
[1766130543850,0.25921902,87881.0,87865.0,0.12350946]
[1766130544057,0.01137928,87879.0,87865.0,0.14457946]
[1766130544258,0.24784,87881.0,87865.0,0.14457946]
[1766130544458,0.01137915,87880.0,87867.0,0.11729]
[1766130545005,0.01137863,87884.0,87868.0,0.02107]
[1766130545344,0.01137863,87884.0,87869.0,0.11729]
[1766130545345,0.01137876,87883.0,87869.0,0.11729]
[1766130545492,0.01137863,87884.0,87869.0,0.11729]
[1766130545696,0.11535,87886.0,87869.0,0.11729]
[1766130545915,0.12294,87896.0,87875.0,0.12072]
[1766130546160,0.01137721,87895.0,87881.0,0.02107]
[1766130546337,0.01137656,87900.0,87883.0,0.02107]
[1766130546541,0.01137656,87900.0,87881.0,0.01137902]
[1766130546542,0.01137656,87900.0,87887.0,0.02107]
[1766130546739,0.01137695,87897.0,87888.0,0.12072]
[1766130547682,0.01137708,87896.0,87888.0,0.12072]
[1766130548264,0.01137721,87895.0,87888.0,0.12072]
[1766130548707,0.01137708,87896.0,87888.0,0.12072]
[1766130549055,0.12404,87888.0,87873.0,0.03643153]
[1766130549282,0.13541811,87888.0,87874.0,0.14179]
[1766130549481,0.01137902,87881.0,87866.0,0.12072]
[1766130549678,0.01137915,87880.0,87866.0,0.12072]
[1766130549884,0.22259083,87877.0,87866.0,0.12072]
[1766130550088,0.0113798,87875.0,87865.0,0.00010946]
[1766130550405,0.34553083,87877.0,87865.0,0.00010946]
[1766130550406,0.01137967,87876.0,87865.0,0.12082946]
[1766130550766,0.0113798,87875.0,87865.0,0.12082946]
[1766130551589,0.01137993,87874.0,87865.0,0.12082946]
[1766130552008,0.0113798,87875.0,87865.0,0.12082946]
[1766130552210,0.12294,87877.0,87865.0,0.12082946]
[1766130552406,0.13431954,87877.0,87865.0,0.12082946]
[1766130552587,0.12294,87877.0,87865.0,0.12082946]
[1766130552793,0.01137902,87881.0,87865.0,0.14189946]
[1766130553096,0.01137915,87880.0,87865.0,0.14189946]
[1766130553772,0.01137863,87884.0,87865.0,0.12082946]
[1766130553975,0.01137863,87884.0,87869.0,0.12072]
[1766130554148,0.13431863,87884.0,87869.0,0.12072]
[1766130555973,0.12294,87884.0,87869.0,0.12072]
[1766130556203,0.01137759,87892.0,87874.0,0.02107]
[1766130556420,0.13431747,87893.0,87877.0,0.12072]
[1766130556622,0.13431747,87893.0,87879.0,0.12072]
[1766130556850,0.01137656,87900.0,87883.0,0.02107]
[1766130557193,0.2461,87919.0,87890.0,0.12072]
[1766130557194,0.01137591,87905.0,87890.0,0.12072]
[1766130557615,0.01137617,87903.0,87890.0,0.12072]
[1766130557962,0.01137604,87904.0,87890.0,0.12072]
[1766130558801,0.01137591,87905.0,87890.0,0.12072]
[1766130559119,0.53354096,87972.0,87890.0,0.12072]
[1766130559120,0.11535,87914.0,87897.0,0.12072]
[1766130559327,0.01137514,87911.0,87897.0,0.12072]
[1766130559527,0.23888326,87910.0,87897.0,0.12072]
[1766130559805,0.01137539,87909.0,87897.0,0.12072]
[1766130560027,0.01137552,87908.0,87897.0,0.12072]
[1766130560308,0.0011,87897.0,87887.0,0.12072]
[1766130560519,0.0011,87897.0,87889.0,0.12072]
[1766130560715,0.0011,87897.0,87888.0,0.01137811]
[1766130560716,0.12294,87905.0,87891.0,0.12072]
[1766130561336,0.23829,87911.0,87893.0,0.12932]
[1766130561518,0.23836464,87911.0,87905.0,0.0011]
[1766130561877,0.12301464,87911.0,87897.0,0.12072]
[1766130562090,0.12301464,87911.0,87898.0,0.01365218]
[1766130562640,0.12301464,87911.0,87897.0,0.12072]
[1766130563583,0.12301464,87911.0,87898.0,0.13437218]
[1766130563786,7.464e-05,87911.0,87901.0,0.01137643]
[1766130563947,7.464e-05,87911.0,87902.0,0.13437156]
[1766130564150,4.64e-06,87911.0,87902.0,0.03355786]
[1766130564348,4.64e-06,87911.0,87904.0,0.00853]
[1766130564553,4.64e-06,87911.0,87906.0,0.12072]
[1766130565021,4.64e-06,87911.0,87904.0,0.00853]
[1766130565379,0.01137591,87905.0,87900.0,0.12072]
[1766130565579,0.01137643,87901.0,87886.0,0.03643153]
[1766130565926,0.13431617,87903.0,87887.0,0.12072]
[1766130566078,0.11535,87902.0,87887.0,0.12072]
[1766130566287,0.23829,87902.0,87887.0,0.12072]
[1766130566489,0.2496663,87902.0,87887.0,0.12072]
[1766130566897,0.01137708,87896.0,87887.0,0.12072]
[1766130567094,0.01137656,87900.0,87887.0,0.12072]
[1766130567298,0.01137669,87899.0,87887.0,0.12072]
[1766130567499,0.12294,87901.0,87887.0,0.12072]
[1766130567814,0.01137552,87908.0,87891.0,0.12072]
[1766130567815,0.24966552,87908.0,87891.0,0.12072]
[1766130567994,0.4771773,87908.0,87891.0,0.12072]
[1766130568198,0.13431565,87907.0,87891.0,0.12072]
[1766130568423,0.12294,87906.0,87891.0,0.12072]
[1766130569011,0.12294,87906.0,87893.0,0.12072]
[1766130569209,4.64e-06,87911.0,87895.0,0.12072]
[1766130569411,4.64e-06,87911.0,87899.0,0.12925]
[1766130569633,4.64e-06,87911.0,87896.0,0.02502957]
[1766130569634,4.64e-06,87911.0,87901.0,0.12072]
[1766130569891,4.64e-06,87911.0,87900.0,0.02218187]
[1766130569892,4.64e-06,87911.0,87903.0,0.12072]
[1766130570083,4.64e-06,87911.0,87907.0,0.12925]
[1766130570295,4.64e-06,87911.0,87909.0,0.12072]
[1766130570864,4.64e-06,87911.0,87910.0,0.00853]
[1766130571073,4.64e-06,87911.0,87884.0,0.34135817]
[1766130571074,4.64e-06,87911.0,87901.0,0.00853]
[1766130571486,4.64e-06,87911.0,87903.0,0.01137617]
[1766130571689,4.64e-06,87911.0,87905.0,0.00853]
[1766130571891,4.64e-06,87911.0,87906.0,0.12072]
[1766130572847,4.64e-06,87911.0,87908.0,0.12072]
[1766130577084,4.64e-06,87911.0,87891.0,0.01137772]
[1766130577282,0.11933,87909.0,87893.0,0.00853]
[1766130577602,0.11933,87909.0,87892.0,0.11373]
[1766130577603,0.11933,87909.0,87895.0,0.00853]
[1766130577803,4.64e-06,87911.0,87898.0,0.11373]
[1766130578006,4.64e-06,87911.0,87896.0,0.03643153]
[1766130578007,4.64e-06,87911.0,87902.0,0.12226]
[1766130578554,4.64e-06,87911.0,87906.0,0.11373]
[1766130578763,4.64e-06,87911.0,87906.0,0.12226]
[1766130579959,4.64e-06,87911.0,87900.0,1.00094153]
[1766130580557,4.64e-06,87911.0,87900.0,1.11467153]
[1766130580733,4.64e-06,87911.0,87900.0,1.00094153]
[1766130580936,4.64e-06,87911.0,87901.0,0.11373]
[1766130581821,0.13070475,87914.0,87901.0,0.11373]
[1766130581995,0.01137488,87913.0,87901.0,0.11380464]
[1766130582330,0.13070475,87914.0,87901.0,0.11380464]
[1766130582674,0.11933,87914.0,87901.0,0.11380464]
[1766130584527,0.13070475,87914.0,87901.0,0.11380464]
[1766130584976,0.01137488,87913.0,87901.0,0.11380464]
[1766130585298,0.01137539,87909.0,87901.0,0.11380464]
[1766130585499,0.01137527,87910.0,87901.0,0.11380464]
[1766130585722,0.01137488,87913.0,87901.0,0.11380464]
[1766130585876,0.01137501,87912.0,87901.0,0.11380464]
[1766130587075,0.01364763,87913.0,87901.0,0.11380464]
[1766130587276,0.11933,87914.0,87901.0,0.11380464]
[1766130587765,0.11933,87914.0,87901.0,0.12240464]
[1766130589032,0.11933,87914.0,87901.0,0.13378107]
[1766130589212,0.11933,87914.0,87903.0,0.11373]
[1766130589421,0.11933,87914.0,87903.0,0.12510617]
[1766130589640,0.11933,87914.0,87903.0,0.11373]
[1766130590482,0.01137488,87913.0,87901.0,0.00867464]
[1766130590704,0.24039,87909.0,87901.0,7.464e-05]
[1766130591566,0.11933,87908.0,87901.0,7.464e-05]
[1766130591769,0.13070578,87906.0,87901.0,7.464e-05]
[1766130591968,0.11933,87906.0,87901.0,7.464e-05]
[1766130592128,0.13070578,87906.0,87901.0,7.464e-05]
[1766130592679,0.24039,87903.0,87888.0,0.0086]
[1766130592912,0.22187109,87903.0,87888.0,0.0086]
[1766130593089,0.22187109,87903.0,87888.0,0.12233]
[1766130593497,0.13070643,87901.0,87882.0,0.01137889]
[1766130593646,0.11933,87901.0,87886.0,0.11373]
[1766130593853,0.22751027,87909.0,87882.0,0.22768481]
[1766130593854,0.11933,87909.0,87890.0,0.11373]
[1766130594079,0.13070539,87909.0,87890.0,0.12510785]
[1766130594286,0.11933,87909.0,87891.0,0.11373]
[1766130594659,0.11933,87909.0,87893.0,0.12510747]
[1766130595254,0.11933,87909.0,87895.0,0.01137721]
[1766130595467,0.22749277,87915.0,87898.0,0.1224]
[1766130595468,0.35819739,87915.0,87898.0,0.1224]
[1766130595674,0.01137488,87913.0,87898.0,0.1224]
[1766130595833,0.11933,87914.0,87898.0,0.1224]
[1766130596242,0.11933,87914.0,87900.0,0.11373]
[1766130596587,0.13070475,87914.0,87900.0,0.11373]
[1766130596806,0.11933,87914.0,87900.0,0.11373]
[1766130598126,0.196689,87911.0,87900.0,0.11373]
[1766130598574,0.196689,87911.0,87902.0,0.11373]
[1766130599294,0.196689,87911.0,87895.0,0.12510721]
[1766130599499,0.316019,87911.0,87895.0,0.11373]
[1766130599673,0.32739414,87911.0,87895.0,0.11373]
[1766130600039,0.32739414,87911.0,87897.0,0.11373]
[1766130600246,0.32739414,87911.0,87892.0,0.12510759]
[1766130600247,0.11933,87909.0,87892.0,0.12510759]
[1766130600454,0.34683859,87909.0,87892.0,0.11373]
[1766130600674,0.01137552,87908.0,87892.0,0.11373]
[1766130600965,0.11933,87909.0,87889.0,0.01137798]
[1766130601166,0.196689,87911.0,87897.0,0.00867]
[1766130601397,0.196689,87911.0,87900.0,0.11373]
[1766130601667,0.12106,87922.0,87911.0,0.0011]
[1766130602144,0.12106,87922.0,87907.0,0.11373]
[1766130602145,0.24039,87922.0,87907.0,0.11373]
[1766130602554,0.13243371,87922.0,87907.0,0.11373]
[1766130602754,0.11933,87921.0,87907.0,0.11373]
[1766130603094,0.0113741,87919.0,87900.0,0.92136926]
[1766130603300,0.11933,87918.0,87901.0,0.11373]
[1766130603700,0.13070423,87918.0,87901.0,0.11373]
[1766130604126,0.11933,87918.0,87901.0,0.11373]
[1766130604325,0.11933,87918.0,87897.0,0.23891341]
[1766130604326,0.11933,87918.0,87904.0,0.11344]
[1766130604601,0.11933,87918.0,87905.0,0.01137591]
[1766130604808,0.11933,87918.0,87906.0,0.11344]
[1766130605045,0.11933,87918.0,87902.0,0.1248163]
[1766130605426,0.11933,87918.0,87903.0,0.13324617]
[1766130606221,0.11933,87918.0,87904.0,0.13324604]
[1766130606483,0.00036499,87922.0,87910.0,0.12187]
[1766130606715,0.00036499,87922.0,87912.0,0.12187]
[1766130606904,0.00036499,87922.0,87913.0,0.13551985]
[1766130607113,0.00036499,87922.0,87914.0,0.01137475]
[1766130607256,0.00036499,87922.0,87914.0,0.1355197]
[1766130607692,0.00036499,87922.0,87914.0,0.12187]
[1766130609634,0.12184,87929.0,87922.0,0.00035901]
[1766130609994,1.00072385,87950.0,87922.0,0.13360272]
[1766130609995,0.12442,87942.0,87922.0,0.13360272]
[1766130610220,0.12184,87940.0,87923.0,0.14689188]
[1766130610421,0.12184,87940.0,87920.0,0.23885102]
[1766130610422,0.12184,87940.0,87924.0,0.12187]
[1766130610762,0.13321138,87940.0,87924.0,0.12187]
[1766130610966,0.13321164,87938.0,87924.0,0.12187]
[1766130611089,0.12184,87938.0,87924.0,0.12187]
[1766130611295,0.13321164,87938.0,87924.0,0.12187]
[1766130611502,0.01137203,87935.0,87924.0,0.12187]
[1766130611929,0.01137242,87932.0,87913.0,0.12187]
[1766130612145,0.01137242,87932.0,87915.0,0.12187]
[1766130612358,0.01137229,87933.0,87915.0,0.12187]
[1766130612551,0.01137242,87932.0,87915.0,0.12187]
[1766130613222,0.01137255,87931.0,87915.0,0.12187]
[1766130613419,0.13321242,87932.0,87915.0,0.12187]
[1766130613599,0.01137255,87931.0,87915.0,0.12187]
[1766130614564,0.13321242,87932.0,87915.0,0.12187]
[1766130614762,0.01137255,87931.0,87915.0,0.12187]
[1766130615142,0.13579294,87928.0,87911.0,0.03643153]
[1766130615310,0.12184,87919.0,87905.0,0.12187]
[1766130615549,0.12184,87916.0,87899.0,0.12187]
[1766130615756,0.12184,87916.0,87899.0,0.13324669]